bitfinex-derivatives/quotes_ETHF0:USTF0_20260118
["timestamp","ask_amount","ask_price","bid_price","bid_amount"]
[1768707543658,2.04307522,3318.4,3317.0,0.15079]
[1768707543958,0.97026988,3318.3,3317.0,0.15079]
[1768707544457,0.97026988,3318.1,3317.0,0.15079]
[1768707544645,0.97026988,3317.9,3317.0,0.15079]
[1768707546462,1.11339369,3317.6,3316.7,0.828]
[1768707546662,1.11339369,3317.6,3316.4,0.97881]
[1768707547362,0.14312381,3317.6,3316.5,0.15081]
[1768707547556,0.97026988,3317.8,3316.4,0.828]
[1768707548561,0.97026988,3317.8,3316.7,0.1508]
[1768707549262,0.14312381,3318.0,3316.7,0.1508]
[1768707551257,0.14312381,3317.8,3316.7,0.1508]
[1768707586603,0.97032779,3318.1,3316.7,0.1508]
[1768707586804,1.06779808,3318.0,3316.7,0.1508]
[1768707587106,0.13791873,3318.3,3316.7,0.1508]
[1768707587292,1.20571607,3318.2,3316.7,0.1508]
[1768707587491,1.06779734,3318.1,3316.7,0.1508]
[1768707587700,0.13791873,3318.2,3316.7,0.1508]
[1768707587896,1.06779643,3318.1,3316.7,0.1508]
[1768707588196,0.13791873,3318.2,3316.7,0.1508]
[1768707588404,1.06778329,3318.1,3316.7,0.1508]
[1768707588604,0.13791873,3318.2,3316.7,0.1508]
[1768707588804,1.20570201,3318.1,3316.7,0.1508]
[1768707589106,0.13791873,3318.1,3316.7,0.1508]
[1768707589703,0.14066301,3318.5,3317.1,0.15078]
[1768707589899,1.06773624,3318.4,3317.1,0.15078]
[1768707590206,0.14066301,3318.5,3317.1,0.15078]
[1768707590397,1.06719095,3318.4,3317.1,0.15078]
[1768707590598,0.14066301,3318.5,3317.1,0.15078]
[1768707590901,1.06719036,3318.4,3317.1,0.15078]
[1768707591106,0.14066301,3318.5,3317.1,0.15078]
[1768707592912,0.1372933,3318.1,3317.1,0.15078]
[1768707599112,0.14003758,3318.5,3317.1,0.15078]
[1768707611336,0.1372933,3318.4,3317.1,1.12074169]
[1768707617435,0.1372933,3318.4,3317.1,0.15078]
[1768707617637,0.1372933,3318.4,3317.1,1.12074169]
[1768707627150,1.06369635,3318.3,3317.1,1.12074169]
[1768707627337,0.1372933,3318.4,3317.1,1.12074169]
[1768707627542,1.06372556,3318.3,3317.1,1.12074169]
[1768707627743,0.1372933,3318.4,3317.1,1.12074169]
[1768707627943,1.06372554,3318.3,3317.1,1.12074169]
[1768707628144,0.1372933,3318.4,3317.1,1.12074169]
[1768707628345,1.0637268,3318.3,3317.1,1.12074169]
[1768707628544,0.1372933,3318.4,3317.1,1.12074169]
[1768707628746,1.06376832,3318.3,3317.1,1.12074169]
[1768707628955,0.1372933,3318.4,3317.1,1.12074169]
[1768707629245,1.06376838,3318.3,3317.1,1.12074169]
[1768707629550,0.1372933,3318.4,3317.1,1.12074169]
[1768707629751,1.06381826,3318.3,3317.1,1.12074169]
[1768707629950,0.1372933,3318.4,3317.1,1.12074169]
[1768707630150,1.06381825,3318.3,3317.1,1.12074169]
[1768707630351,0.1372933,3318.4,3317.1,1.12074169]
[1768707630564,1.06381807,3318.3,3317.1,1.12074169]
[1768707630852,0.1372933,3318.4,3317.1,1.12074169]
[1768707631152,1.06381813,3318.3,3317.1,1.12074169]
[1768707631347,0.1372933,3318.4,3317.1,1.12074169]
[1768707631553,1.0638179,3318.3,3317.1,1.12074169]
[1768707631747,0.1372933,3318.4,3317.1,1.12074169]
[1768707631949,1.06381775,3318.3,3317.1,1.12074169]
[1768707632256,0.1372933,3318.4,3317.1,1.94874169]
[1768707632444,1.0638168,3318.3,3317.1,1.94874169]
[1768707632645,0.1372933,3318.4,3317.1,1.94874169]
[1768707632846,1.06381684,3318.3,3317.1,1.94874169]
[1768707633060,0.1372933,3318.4,3317.1,1.94874169]
[1768707633345,1.06381683,3318.3,3317.1,1.94874169]
[1768707633543,0.1372933,3318.4,3317.1,1.94874169]
[1768707633747,1.0638178,3318.3,3317.1,0.97878]
[1768707633945,0.1372933,3318.4,3317.1,1.94874169]
[1768707634150,1.06381741,3318.3,3317.1,1.94874169]
[1768707634350,0.1372933,3318.4,3317.1,1.94874169]
[1768707634561,1.06381831,3318.3,3317.1,1.94874169]
[1768707634859,0.1372933,3318.4,3317.1,1.94874169]
[1768707635062,1.06381829,3318.3,3317.1,1.94874169]
[1768707635262,0.1372933,3318.4,3317.1,1.94874169]
[1768707635464,1.06381958,3318.3,3317.1,1.94874169]
[1768707635660,0.1372933,3318.4,3317.1,1.94874169]
[1768707635962,1.06381976,3318.3,3317.1,1.94874169]
[1768707636166,0.1372933,3318.4,3317.1,1.94874169]
[1768707636362,1.06382119,3318.3,3317.1,1.94874169]
[1768707636562,0.1372933,3318.4,3317.1,1.94874169]
[1768707636864,1.06382124,3318.3,3317.1,1.94874169]
[1768707637163,0.1372933,3318.4,3317.1,1.94874169]
[1768707638067,0.1372933,3318.4,3317.1,1.12074169]
[1768707643978,0.00274428,3318.5,3317.3,0.96996169]
[1768707644178,1.06409032,3318.4,3317.3,0.96996169]
[1768707644383,0.00274428,3318.5,3317.3,0.96996169]
[1768707644678,1.06408015,3318.4,3317.3,0.96996169]
[1768707644878,0.00274428,3318.5,3317.3,0.96996169]
[1768707645178,1.06407956,3318.4,3317.3,0.96996169]
[1768707645382,0.00274428,3318.5,3317.3,0.96996169]
[1768707645678,1.06406508,3318.4,3317.3,0.96996169]
[1768707645881,0.00274428,3318.5,3317.3,0.96996169]
[1768707646179,1.06406507,3318.4,3317.3,0.96996169]
[1768707646379,0.00274428,3318.5,3317.3,0.96996169]
[1768707646570,1.06405645,3318.4,3317.3,0.96996169]
[1768707646769,0.00274428,3318.5,3317.3,0.96996169]
[1768707647074,1.06405683,3318.4,3317.3,0.96996169]
[1768707647277,0.00274428,3318.5,3317.3,0.96996169]
[1768707647479,1.06405268,3318.4,3317.3,0.96996169]
[1768707647678,0.00274428,3318.5,3317.3,0.96996169]
[1768707647879,1.06404923,3318.4,3317.3,0.96996169]
[1768707648181,0.00274428,3318.5,3317.5,0.96996169]
[1768707648489,1.06403382,3318.4,3317.5,0.96996169]
[1768707648676,0.00274428,3318.5,3317.5,0.96996169]
[1768707648875,1.06403384,3318.4,3317.5,0.96996169]
[1768707649077,0.00274428,3318.5,3317.5,0.96996169]
[1768707649277,1.06403383,3318.4,3317.5,0.96996169]
[1768707649477,0.00274428,3318.5,3317.5,0.96996169]
[1768707649679,1.06402251,3318.4,3317.5,0.96996169]
[1768707649877,0.00274428,3318.5,3317.5,0.96996169]
[1768707650080,1.06402254,3318.4,3317.5,0.96996169]
[1768707650284,0.00274428,3318.5,3317.3,0.96996169]
[1768707650485,1.06401518,3318.4,3317.3,0.96996169]
[1768707650682,0.14210001,3318.5,3317.2,0.15078]
[1768707650978,0.13935573,3318.3,3317.2,0.15078]
[1768707659982,0.00274428,3318.5,3317.2,0.15078]
[1768707660186,0.00274428,3318.5,3317.4,0.96996169]
[1768707660387,1.06401422,3318.4,3317.4,0.96996169]
[1768707660577,0.00274428,3318.5,3317.4,0.96996169]
[1768707660778,1.0640144,3318.4,3317.4,0.96996169]
[1768707660983,0.00274428,3318.5,3317.4,0.96996169]
[1768707661184,1.06401471,3318.4,3317.4,0.96996169]
[1768707661483,0.00274428,3318.5,3317.4,0.96996169]
[1768707661685,1.06401387,3318.4,3317.4,0.96996169]
[1768707661884,0.00274428,3318.5,3317.4,0.96996169]
[1768707662086,1.0640139,3318.4,3317.4,0.96996169]
[1768707662288,0.00274428,3318.5,3317.4,0.96996169]
[1768707662490,1.0640137,3318.4,3317.4,0.96996169]
[1768707662684,0.00274428,3318.5,3317.4,0.96996169]
[1768707662881,0.12994564,3319.1,3318.0,0.96996169]
[1768707663078,1.06391628,3319.0,3318.0,0.96996169]
[1768707663281,0.12994564,3319.1,3318.0,0.96996169]
[1768707663891,0.13335054,3319.1,3318.0,0.96996169]
[1768707665586,1.10331223,3319.1,3317.7,0.15075]
[1768707665791,0.12994564,3319.0,3317.7,0.15075]
[1768707666393,0.96996169,3318.9,3317.7,0.15075]
[1768707666693,1.09990733,3318.9,3317.7,0.15075]
[1768707666898,0.96996169,3318.6,3317.7,0.15075]
[1768707667196,1.09990733,3318.6,3317.7,0.15075]
[1768707667500,0.12994564,3318.5,3317.7,0.15075]
[1768707682004,0.12994564,3318.5,3317.0,0.15078]
[1768707684900,0.12994564,3318.5,3317.0,0.97878]
[1768707690910,0.12994564,3318.5,3317.0,0.15078]
[1768707705222,1.06456357,3318.4,3317.0,0.15078]
[1768707705413,0.13208125,3318.3,3317.0,0.15078]
[1768707721230,0.13861308,3318.7,3317.1,0.15078]
[1768707721433,1.32357354,3318.6,3317.1,0.15078]
[1768707721625,1.83161308,3318.7,3317.1,0.15078]
[1768707721626,1.3235724,3318.5,3317.1,0.15078]
[1768707721935,1.06646191,3318.4,3317.1,0.15078]
[1768707722230,1.06646191,3318.3,3317.1,0.15078]
[1768707722433,1.83161308,3318.7,3317.1,0.15078]
[1768707722733,1.32354005,3318.6,3317.1,0.15078]
[1768707722934,1.06643565,3318.5,3317.1,0.15078]
[1768707723234,1.06643565,3318.4,3317.1,0.15078]
[1768707723433,1.06643565,3318.3,3317.1,0.15078]
[1768707723626,1.83161308,3318.7,3317.1,0.15078]
[1768707723830,1.32351932,3318.6,3317.1,0.15078]
[1768707724031,1.06641892,3318.5,3317.1,0.15078]
[1768707724229,1.06641892,3318.4,3317.1,0.15078]
[1768707724428,1.06641892,3318.3,3317.1,0.15078]
[1768707724629,1.83161308,3318.7,3317.1,0.15078]
[1768707724831,1.32350448,3318.6,3317.1,0.15078]
[1768707725028,1.06640696,3318.5,3317.1,0.15078]
[1768707725229,1.06640696,3318.4,3317.1,0.15078]
[1768707725428,1.06640696,3318.3,3317.1,0.15078]
[1768707725637,0.13861308,3318.6,3317.1,0.15078]
[1768707725936,1.32349434,3318.5,3317.1,0.97878]
[1768707726138,1.0663988,3318.4,3317.1,0.97878]
[1768707726327,1.0663988,3318.3,3317.1,0.97878]
[1768707726529,0.13861308,3318.6,3317.1,0.97878]
[1768707726728,1.32348784,3318.5,3317.1,0.97878]
[1768707727027,1.06639348,3318.4,3317.1,0.97878]
[1768707727228,1.06639348,3318.3,3317.1,0.97878]
[1768707727429,0.13861308,3318.6,3317.1,0.97878]
[1768707727630,1.32347977,3318.5,3317.1,0.97878]
[1768707727835,1.06638695,3318.4,3317.1,0.97878]
[1768707728036,1.06638695,3318.3,3317.1,0.97878]
[1768707728339,0.13861308,3318.6,3317.1,0.97878]
[1768707728540,0.13861308,3318.2,3317.1,0.97878]
[1768707731237,0.13861308,3318.2,3317.1,0.15078]
[1768707731454,1.10849516,3317.9,3316.5,0.828]
[1768707731649,0.13861308,3317.8,3316.5,0.15081]
[1768707733440,1.62673345,3318.3,3316.5,0.15081]
[1768707733441,0.97057286,3317.4,3316.5,0.15081]
[1768707736244,0.13861308,3318.1,3316.5,0.15081]
[1768707736437,0.97057286,3317.9,3316.5,0.15081]
[1768707736647,1.07678929,3317.8,3316.5,0.15081]
[1768707736840,0.97057286,3317.9,3316.5,1.12138286]
[1768707737140,1.07678782,3317.8,3316.5,1.12138286]
[1768707737341,0.97057286,3317.9,3316.5,1.12138286]
[1768707737641,1.07663095,3317.8,3316.5,1.12138286]
[1768707737944,0.97057286,3317.9,3316.5,1.12138286]
[1768707738247,1.10918594,3317.7,3316.5,0.15081]
[1768707739647,0.97057286,3317.5,3316.5,0.15081]
[1768707742848,1.10918594,3317.7,3316.5,0.15081]
[1768707743043,0.13861308,3317.7,3316.5,1.12138286]
[1768707743850,1.10918594,3317.7,3316.5,0.15081]
[1768707744050,0.14195175,3317.4,3316.5,0.15081]
[1768707744250,0.97057286,3317.3,3316.5,0.15081]
[1768707745247,0.14195175,3317.4,3316.5,0.15081]
[1768707746051,0.14195175,3317.9,3316.7,0.97057286]
[1768707748654,0.14195175,3317.9,3316.5,1.12138286]
[1768707750350,0.14195175,3317.9,3316.5,0.15081]
[1768707750551,0.14195175,3317.9,3316.5,1.12138286]
[1768707751952,0.97057286,3317.8,3316.5,1.12138286]
[1768707752652,0.97057286,3317.8,3316.5,0.15081]
[1768707754257,1.10927215,3317.8,3316.5,0.15081]
[1768707754455,0.97057286,3317.6,3316.5,0.15081]
[1768707754953,1.10927215,3317.6,3316.5,0.15081]
[1768707764767,1.62673345,3318.2,3316.5,0.15081]
[1768707764768,1.10927215,3317.4,3316.5,0.15081]
[1768707764953,0.13869929,3317.3,3316.5,0.15081]
[1768707765974,0.97057286,3317.6,3316.5,0.15081]
[1768707766367,0.13869929,3317.7,3316.5,0.15081]
[1768707766574,1.07816117,3317.6,3316.5,0.15081]
[1768707766776,0.13869929,3317.7,3316.5,0.15081]
[1768707766977,1.07816115,3317.6,3316.5,0.15081]
[1768707767172,1.07816099,3317.5,3316.5,0.15081]
[1768707767376,0.13869929,3317.7,3316.5,0.15081]
[1768707767672,1.07816144,3317.6,3316.5,0.15081]
[1768707767872,1.07816144,3317.5,3316.5,0.15081]
[1768707768067,0.13869929,3317.7,3316.5,0.15081]
[1768707768273,1.07816143,3317.6,3316.5,0.15081]
[1768707768473,1.07816143,3317.5,3316.5,0.15081]
[1768707768673,0.13869929,3317.7,3316.5,0.15081]
[1768707768874,1.07816244,3317.6,3316.5,0.15081]
[1768707769073,1.07816244,3317.5,3316.5,0.15081]
[1768707769273,0.13869929,3317.7,3316.5,0.15081]
[1768707769479,1.07816294,3317.6,3316.5,0.15081]
[1768707769695,1.07816294,3317.5,3316.5,0.15081]
[1768707769983,0.13869929,3317.7,3316.5,0.15081]
[1768707770176,1.07816294,3317.6,3316.5,0.15081]
[1768707770478,1.07816294,3317.5,3316.5,0.15081]
[1768707770682,0.13869929,3317.7,3316.5,0.15081]
[1768707770878,1.07816395,3317.6,3316.5,0.15081]
[1768707771079,1.07816395,3317.5,3316.5,0.15081]
[1768707771382,0.13869929,3317.7,3316.5,0.15081]
[1768707771581,1.07816488,3317.6,3316.5,0.15081]
[1768707771774,1.07816488,3317.5,3316.5,0.15081]
[1768707771974,0.13869929,3317.7,3316.5,0.15081]
[1768707772176,1.07816485,3317.6,3316.5,0.15081]
[1768707772376,1.07816485,3317.5,3316.5,0.15081]
[1768707772678,0.13869929,3317.7,3316.5,0.15081]
[1768707772878,1.07816587,3317.6,3316.5,0.15081]
[1768707773078,1.07816587,3317.5,3316.5,0.15081]
[1768707773275,0.13869929,3317.7,3316.5,0.15081]
[1768707773475,1.07816617,3317.6,3316.5,0.15081]
[1768707773678,1.07816617,3317.5,3316.5,0.15081]
[1768707773977,0.13869929,3317.7,3316.5,0.15081]
[1768707774177,1.07816617,3317.6,3316.5,0.15081]
[1768707774384,1.07816617,3317.5,3316.5,0.15081]
[1768707774686,0.13869929,3317.7,3316.5,0.15081]
[1768707774887,1.07818183,3317.6,3316.5,0.15081]
[1768707775085,1.07818183,3317.5,3316.5,0.15081]
[1768707775384,0.13794395,3317.5,3316.5,0.15081]
[1768707783092,0.13794395,3317.3,3316.5,0.15081]
[1768707784795,0.97057286,3317.6,3316.5,0.15081]
[1768707785298,1.10851681,3317.6,3316.5,0.15081]
[1768707786193,0.13794395,3317.5,3316.5,0.15081]
[1768707786399,1.693,3318.0,3316.5,0.15081]
[1768707786400,0.13794395,3317.3,3316.5,0.15081]
[1768707810618,0.14333948,3317.8,3316.5,0.15081]
[1768707810817,0.14333948,3317.6,3316.5,0.15081]
[1768707836345,0.13374602,3318.0,3316.4,1.08681172]
[1768707836551,0.13374602,3318.4,3317.0,0.15078]
[1768707836754,1.07584293,3318.3,3317.0,0.15078]
[1768707836949,1.07584293,3318.2,3317.0,0.15078]
[1768707837147,0.13374602,3318.4,3317.0,0.15078]
[1768707837339,1.07484535,3318.3,3317.0,0.15078]
[1768707837539,0.13374602,3318.4,3317.0,0.15078]
[1768707837744,1.07484537,3318.3,3317.0,0.15078]
[1768707837945,0.13374602,3318.4,3317.0,0.15078]
[1768707838145,1.07484538,3318.3,3317.0,0.15078]
[1768707838349,0.13374602,3318.4,3317.0,0.15078]
[1768707838550,1.07442451,3318.3,3317.0,0.15078]
[1768707838746,0.13374602,3318.4,3317.0,0.15078]
[1768707838948,1.07442452,3318.3,3317.0,0.15078]
[1768707839149,0.13374602,3318.4,3317.0,0.15078]
[1768707839350,1.07411899,3318.3,3317.0,0.15078]
[1768707839550,0.13374602,3318.4,3317.0,0.15078]
[1768707839855,1.07411899,3318.3,3317.0,0.15078]
[1768707840055,0.13374602,3318.4,3317.1,0.15078]
[1768707841152,0.13374602,3318.4,3317.2,0.15078]
[1768707857367,1.1036751,3318.4,3317.2,0.15078]
[1768707857968,1.1036751,3318.4,3317.2,0.97878]
[1768707866179,1.07122626,3318.3,3317.2,0.97878]
[1768707866478,1.1036751,3318.4,3317.2,0.97878]
[1768707866677,1.07125311,3318.3,3317.2,0.97878]
[1768707866878,1.1036751,3318.4,3317.2,0.97878]
[1768707867081,1.0712531,3318.3,3317.2,0.97878]
[1768707867276,1.1036751,3318.4,3317.2,0.97878]
[1768707869579,1.1036751,3318.4,3317.2,0.15078]
[1768707871582,0.13374602,3318.4,3317.2,0.15078]
[1768707871771,1.1036751,3318.4,3317.2,0.15078]
[1768707875184,1.07168335,3318.3,3317.2,0.15078]
[1768707875381,1.1036751,3318.4,3317.2,0.15078]
[1768707875575,1.07168262,3318.3,3317.2,0.97878]
[1768707875873,1.1036751,3318.4,3317.2,0.97878]
[1768707876073,1.0716826,3318.3,3317.2,0.97878]
[1768707876270,1.1036751,3318.4,3317.2,0.97878]
[1768707876486,1.07168255,3318.3,3317.2,0.97878]
[1768707876783,1.1036751,3318.4,3317.2,0.97878]
[1768707876986,1.0716826,3318.3,3317.2,0.97878]
[1768707877289,1.1036751,3318.4,3317.2,0.97878]
[1768707877486,1.07168309,3318.3,3317.2,0.97878]
[1768707877688,1.1036751,3318.4,3317.2,0.97878]
[1768707877886,1.07168307,3318.3,3317.2,0.97878]
[1768707878087,1.1036751,3318.4,3317.2,0.97878]
[1768707878289,1.07168306,3318.3,3317.2,0.97878]
[1768707878488,1.1036751,3318.4,3317.2,0.97878]
[1768707878679,1.07168263,3318.3,3317.2,0.97878]
[1768707878881,1.1036751,3318.4,3317.2,0.97878]
[1768707879174,1.07168287,3318.3,3317.2,0.97878]
[1768707879377,1.1036751,3318.4,3317.2,0.97878]
[1768707879591,1.07168181,3318.3,3317.2,0.97878]
[1768707879790,1.1036751,3318.4,3317.2,0.97878]
[1768707880088,1.0716818,3318.3,3317.2,0.97878]
[1768707880386,1.1036751,3318.4,3317.2,0.97878]
[1768707880589,1.07168106,3318.3,3317.2,0.97878]
[1768707880890,1.1036751,3318.4,3317.2,0.97878]
[1768707881089,1.07168053,3318.3,3317.2,0.97878]
[1768707881279,1.1036751,3318.4,3317.2,0.15078]
[1768707881482,1.07167977,3318.3,3317.2,0.15078]
[1768707881778,1.1036751,3318.4,3317.2,0.15078]
[1768707881978,1.07167958,3318.3,3317.2,0.15078]
[1768707882185,1.1036751,3318.4,3317.2,0.15078]
[1768707882484,1.07167958,3318.3,3317.2,0.15078]
[1768707882683,1.1036751,3318.4,3317.2,0.15078]
[1768707882884,1.06873872,3318.3,3317.2,0.15078]
[1768707883086,1.1036751,3318.4,3317.2,0.15078]
[1768707883284,1.06873872,3318.3,3317.2,0.15078]
[1768707883493,1.1036751,3318.4,3317.2,0.15078]
[1768707883692,1.0687397,3318.3,3317.2,0.15078]
[1768707883881,0.13405081,3318.3,3317.2,0.15078]
[1768707887199,0.13405081,3318.3,3317.2,0.97878]
[1768707893015,0.13405081,3318.3,3317.2,0.15078]
[1768707897314,1.06881522,3318.2,3317.2,0.15078]
[1768707897620,0.13405081,3318.3,3317.2,0.15078]
[1768707897810,1.06881526,3318.2,3317.2,0.15078]
[1768707898009,0.13405081,3318.3,3317.2,0.15078]
[1768707898209,1.06881529,3318.2,3317.2,0.15078]
[1768707898411,0.13405081,3318.3,3317.2,0.15078]
[1768707898611,1.06881519,3318.2,3317.2,0.15078]
[1768707898811,0.13405081,3318.3,3317.2,0.15078]
[1768707899109,1.06881519,3318.2,3317.2,0.97878]
[1768707899309,0.13405081,3318.3,3317.2,0.97878]
[1768707899510,1.06881511,3318.2,3317.2,0.97878]
[1768707899712,0.13405081,3318.3,3317.2,0.97878]
[1768707899914,1.06881531,3318.2,3317.2,0.97878]
[1768707900211,0.13405081,3318.3,3317.2,0.97878]
[1768707900411,1.0688131,3318.2,3317.2,0.97878]
[1768707900720,0.13405081,3318.3,3317.2,0.97878]
[1768707900921,1.06881081,3318.2,3317.2,0.97878]
[1768707901119,0.13405081,3318.3,3317.2,0.97878]
[1768707902518,0.13405081,3318.3,3317.3,0.96992908]
[1768707902706,0.96992908,3318.6,3317.3,0.96992908]
[1768707902912,1.06863256,3318.5,3317.3,0.96992908]
[1768707903112,1.06863256,3318.4,3317.3,0.96992908]
[1768707903419,1.06863256,3318.3,3317.3,0.96992908]
[1768707903620,1.10650901,3318.6,3317.3,0.96992908]
[1768707903823,1.06856767,3318.5,3317.3,0.96992908]
[1768707904121,1.06856767,3318.4,3317.3,0.96992908]
[1768707904314,1.06856767,3318.3,3317.3,0.96992908]
[1768707904515,0.13657993,3318.5,3317.2,0.97878]
[1768707904713,1.20510051,3318.4,3317.2,0.97878]
[1768707905015,1.06852058,3318.3,3317.3,0.828]
[1768707905222,1.20510051,3318.3,3317.3,0.828]
[1768707905418,0.13657993,3318.3,3317.3,0.828]
[1768707906425,0.13657993,3318.3,3317.3,0.97877]
[1768707906805,0.13657993,3318.8,3317.3,0.97877]
[1768707907009,0.96992908,3318.6,3317.3,1.12069908]
[1768707907224,1.06846097,3318.5,3317.3,1.12069908]
[1768707907526,0.96992908,3318.6,3317.3,1.12069908]
[1768707907726,1.06843017,3318.5,3317.3,0.15077]
[1768707907916,1.10650901,3318.6,3317.3,0.15077]
[1768707908110,1.06843073,3318.5,3317.3,0.15077]
[1768707908315,0.13657993,3318.5,3317.3,0.15077]
[1768707909112,0.13657993,3318.5,3317.3,1.12069908]
[1768707910622,0.13657993,3318.5,3317.3,1.94869908]
[1768707912625,0.13657993,3318.5,3317.3,0.97877]
[1768707912820,1.10650901,3318.4,3317.3,0.97877]
[1768707913016,0.96992908,3317.9,3317.3,0.97877]
[1768707914323,1.10650901,3318.1,3317.3,0.97877]
[1768707916516,2.24729269,3318.9,3317.3,0.97877]
[1768707916517,1.10650901,3317.9,3317.3,0.15077]
[1768707917321,0.13657993,3317.9,3317.3,0.15077]
[1768707918328,0.13657993,3317.9,3316.8,0.828]
[1768707920126,0.13657993,3317.9,3316.7,0.828]
[1768707921316,0.13657993,3317.9,3316.7,0.9788]
[1768707922014,0.13657993,3317.9,3316.8,0.15079]
[1768707922218,0.13232858,3318.3,3316.9,0.15079]
[1768707922828,0.13232858,3318.3,3317.0,0.15079]
[1768707925431,0.13232858,3318.3,3317.0,0.97879]
[1768707930043,0.13232858,3318.7,3317.0,0.97879]
[1768707931234,0.13232858,3318.7,3317.1,0.828]
[1768707931532,0.13232858,3318.5,3317.1,0.828]
[1768707931732,1.06756177,3318.4,3317.1,0.828]
[1768707936249,1.19932528,3318.4,3317.1,0.828]
[1768707936437,0.13176351,3318.4,3317.1,0.828]
[1768707938846,0.13176351,3318.4,3317.1,0.97878]
[1768707942855,0.13176351,3318.4,3317.1,0.15078]
[1768707947353,0.13176351,3318.2,3317.1,0.15078]
[1768707979293,0.9701799,3318.0,3317.1,0.15078]
[1768707982894,0.9701799,3317.8,3317.1,0.15078]
[1768707983501,0.9701799,3317.6,3316.7,0.828]
[1768707983791,0.9701799,3317.6,3316.5,2.65708465]
[1768707983792,0.9701799,3317.4,3316.5,2.80789465]
[1768707984790,0.13097867,3317.6,3316.5,2.80789465]
[1768707984791,0.9701799,3317.2,3316.5,2.80789465]
[1768707986291,0.9701799,3317.2,3316.5,0.15081]
[1768707987692,0.9701799,3317.4,3316.5,0.15081]
[1768707988597,1.10115857,3317.6,3316.5,0.15081]
[1768707988793,0.9701799,3318.1,3316.3,0.11613952]
[1768707989094,1.06380536,3318.0,3316.7,0.9701799]
[1768707989296,0.13097867,3318.0,3316.7,0.9701799]
[1768707990494,0.13097867,3318.0,3316.7,1.1209799]
[1768707992094,1.10115857,3318.0,3316.7,1.1209799]
[1768707992296,0.13097867,3317.7,3316.7,0.1508]
[1768707992494,1.10115857,3317.6,3316.7,0.1508]
[1768707992697,0.13097867,3317.5,3316.7,0.1508]
[1768707997600,0.9701799,3317.4,3316.3,0.00350088]
[1768707997800,0.9701799,3317.4,3316.3,0.15431088]
[1768707999400,1.11201533,3317.4,3316.3,0.15431088]
[1768708001804,1.11201533,3317.4,3316.4,0.15081]
[1768708002002,0.9701799,3317.6,3316.4,0.15081]
[1768708002606,0.14183543,3317.5,3316.4,0.15081]
[1768708017817,0.14183543,3317.5,3316.5,0.15081]
[1768708018916,0.9701799,3317.6,3316.5,0.15081]
[1768708019222,1.11083821,3318.0,3316.7,0.1508]
[1768708019408,1.06557863,3317.9,3316.7,0.1508]
[1768708019612,1.06557863,3317.8,3316.7,0.1508]
[1768708019813,1.11083821,3318.0,3316.7,0.1508]
[1768708020122,1.06557841,3317.9,3316.7,0.1508]
[1768708020419,1.06557841,3317.8,3316.7,0.1508]
[1768708020620,1.11083821,3318.0,3316.7,0.1508]
[1768708020823,1.06558373,3317.9,3316.7,0.1508]
[1768708021011,1.06558373,3317.8,3316.7,0.1508]
[1768708021214,1.11083821,3318.0,3316.7,0.1508]
[1768708021434,1.0656345,3317.9,3316.7,0.1508]
[1768708021721,1.0656345,3317.8,3316.7,0.1508]
[1768708022021,1.11083821,3318.0,3316.7,0.1508]
[1768708022219,1.06563523,3317.9,3316.7,0.1508]
[1768708022419,1.06563523,3317.8,3316.7,0.1508]
[1768708022619,1.11083821,3318.0,3316.7,0.1508]
[1768708022815,1.06569138,3317.9,3316.7,0.1508]
[1768708023016,1.06569138,3317.8,3316.7,0.1508]
[1768708023219,1.11083821,3318.0,3316.7,0.1508]
[1768708023416,1.06572944,3317.9,3316.7,0.1508]
[1768708023619,1.06572944,3317.8,3316.7,0.1508]
[1768708023820,1.11083821,3317.8,3316.7,0.1508]
[1768708030029,0.14065831,3317.7,3316.7,0.1508]
[1768708048947,0.14010073,3318.2,3316.7,0.1508]
[1768708049141,1.20562264,3318.1,3316.7,0.1508]
[1768708049347,0.14010073,3318.1,3317.1,0.15078]
[1768708072252,0.13586274,3318.0,3316.8,0.828]
[1768708076974,0.13586274,3318.0,3316.8,0.97879]
[1768708077770,0.13586274,3318.0,3316.8,0.15079]
[1768708078373,0.13586274,3318.0,3316.9,0.15079]
[1768708079469,0.13586274,3318.4,3316.9,0.15079]
[1768708079666,1.06312689,3318.3,3316.9,0.15079]
[1768708079861,0.13586274,3318.4,3316.9,0.15079]
[1768708080064,1.06311741,3318.3,3316.9,0.15079]
[1768708080265,0.13586274,3318.4,3317.1,0.15078]
[1768708080466,1.06310529,3318.3,3317.1,0.15078]
[1768708080666,0.13586274,3318.4,3317.1,0.15078]
[1768708080863,1.06308682,3318.3,3317.1,0.15078]
[1768708081074,0.13586274,3318.4,3317.1,0.15078]
[1768708081266,0.13586274,3318.8,3317.4,0.15077]
[1768708081574,1.06296057,3318.7,3317.6,0.15076]
[1768708081773,0.13586274,3318.8,3317.6,0.15076]
[1768708088487,0.13586274,3318.6,3317.6,0.15076]
[1768708109607,0.13486526,3318.9,3317.7,0.9697871]
[1768708109807,0.13486526,3318.9,3317.9,0.9697871]
[1768708110706,0.13486526,3318.9,3317.7,0.9697871]
[1768708111204,0.13486526,3318.9,3317.6,0.15076]
[1768708112404,0.9697871,3318.8,3317.6,0.15076]
[1768708112707,1.10465236,3318.8,3317.6,0.15076]
[1768708113409,0.13486526,3318.8,3317.6,0.15076]
[1768708113915,0.973192,3319.1,3317.7,0.9697871]
[1768708114099,1.0630215,3319.0,3317.7,0.9697871]
[1768708114298,1.0630215,3318.9,3317.7,0.9697871]
[1768708114498,1.1151245,3319.1,3317.7,0.9697871]
[1768708114698,1.06301517,3319.0,3317.7,0.9697871]
[1768708114910,1.06301517,3318.9,3317.7,0.9697871]
[1768708115206,1.1151245,3319.1,3317.7,0.9697871]
[1768708115391,1.06300909,3319.0,3317.7,0.9697871]
[1768708115598,1.06300909,3318.9,3317.7,0.9697871]
[1768708115798,1.1151245,3319.1,3317.7,0.9697871]
[1768708116100,1.1151245,3319.1,3317.2,0.10930631]
[1768708116101,1.06300929,3319.0,3317.9,0.9697871]
[1768708116303,0.1453374,3319.1,3317.9,0.9697871]
[1768708116502,1.06295489,3319.0,3317.9,0.9697871]
[1768708116706,0.1453374,3319.1,3317.9,0.9697871]
[1768708117507,1.06287023,3319.0,3317.9,0.9697871]
[1768708117708,0.1453374,3319.1,3317.9,0.9697871]
[1768708117909,1.0628812,3319.0,3317.9,0.9697871]
[1768708118111,0.1453374,3319.1,3317.9,0.9697871]
[1768708118305,1.06281962,3319.0,3317.9,0.9697871]
[1768708118504,0.1453374,3319.1,3317.9,0.9697871]
[1768708118707,1.06281944,3319.0,3317.9,0.9697871]